bitfinex/quotes_SOLUSD_20240816
["timestamp","ask_amount","ask_price","bid_price","bid_amount"]
[1723779227237,21.8887,142.51,142.43,65.12549]
[1723779227765,0.12549,142.5,142.43,65.12549]
[1723779227964,0.25098,142.5,142.43,65.12549]
[1723779228823,0.25098,142.5,142.43,45.0]
[1723779229028,7.26858,142.5,142.43,45.0]
[1723779229262,7.26858,142.5,142.42,45.0]
[1723779229469,9.02356478,142.5,142.42,45.0]
[1723779230030,2.00596478,142.5,142.42,45.0]
[1723779230244,0.25098,142.5,142.42,45.0]
[1723779231149,0.12549,142.48,142.41,20.0]
[1723779231333,15.4405,142.46,142.41,20.0]
[1723779231532,0.25098,142.45,142.39,20.0]
[1723779231732,0.25098,142.45,142.38,20.0]
[1723779232054,0.25098,142.45,142.36,42.6954]
[1723779233459,0.25098,142.45,142.37,20.0]
[1723779233661,2.00636107,142.45,142.38,45.25098]
[1723779234443,0.25098,142.45,142.38,45.25098]
[1723779235047,15.4405,142.46,142.38,65.25098]
[1723779235364,15.4405,142.46,142.4,20.0]
[1723779235661,15.4405,142.46,142.41,20.12549]
[1723779235865,15.4405,142.46,142.42,45.0]
[1723779236069,6.526,142.48,142.44,20.0]
[1723779236268,6.526,142.48,142.45,45.0]
[1723779237060,6.526,142.48,142.44,20.12549]
[1723779239248,6.526,142.48,142.45,45.12549]
[1723779241042,6.526,142.48,142.43,0.12549]
[1723779241254,6.526,142.48,142.41,20.0]
[1723779241255,0.12549,142.47,142.41,20.0]
[1723779241572,0.25098,142.47,142.38,26.51]
[1723779241771,0.25098,142.47,142.39,20.0]
[1723779242068,0.25098,142.47,142.39,40.0]
[1723779242268,0.25098,142.47,142.39,60.0]
[1723779242453,0.25098,142.47,142.39,40.0]
[1723779242970,0.25098,142.47,142.39,20.0]
[1723779242971,7.26998,142.47,142.39,20.0]
[1723779243134,0.25098,142.47,142.39,20.0]
[1723779243336,6.526,142.48,142.42,20.0]
[1723779243556,6.526,142.48,142.4,46.51]
[1723779243768,6.526,142.48,142.41,45.12549]
[1723779243973,6.526,142.48,142.42,0.12549]
[1723779245848,6.526,142.48,142.42,26.63549]
[1723779246170,6.526,142.48,142.43,45.12549]
[1723779246384,6.526,142.48,142.44,0.12549]
[1723779246670,6.526,142.48,142.4,20.0]
[1723779246671,0.12549,142.47,142.38,40.0]
[1723779246856,0.12549,142.47,142.39,46.51]
[1723779248093,0.25098,142.47,142.4,0.25098]
[1723779248271,0.25098,142.47,142.4,45.25098]
[1723779251161,6.526,142.48,142.4,85.25098]
[1723779251366,6.526,142.48,142.42,20.0]
[1723779251568,6.526,142.48,142.43,45.0]
[1723779251772,6.526,142.48,142.4,20.25098]
[1723779251946,0.25098,142.47,142.39,20.0]
[1723779253253,0.25098,142.47,142.4,45.12549]
[1723779257449,0.25098,142.47,142.4,45.0]
[1723779257645,0.12549,142.45,142.38,46.51]
[1723779257851,0.25098,142.45,142.38,30.61]
[1723779258273,0.12549,142.43,142.35,20.8577618]
[1723779258483,0.12549,142.43,142.35,31.4677618]
[1723779258687,0.25098,142.43,142.35,31.4677618]
[1723779259059,0.12549,142.41,142.35,31.4677618]
[1723779259273,0.25098,142.41,142.35,31.4677618]
[1723779259984,16.2986,142.42,142.37,26.54]
[1723779260305,16.2986,142.42,142.38,65.0]
[1723779260486,16.2986,142.42,142.37,26.54]
[1723779260683,16.2986,142.42,142.37,20.0]
[1723779261605,16.2986,142.42,142.38,0.12549]
[1723779261898,16.2986,142.42,142.38,45.25098]
[1723779262687,16.2986,142.42,142.38,45.0]
[1723779262889,16.2986,142.42,142.35,47.3977618]
[1723779263123,16.2986,142.42,142.36,65.25098]
[1723779264287,0.25098,142.41,142.35,20.8577618]
[1723779264598,16.2986,142.42,142.36,20.0]
[1723779265172,0.12549,142.41,142.36,20.0]
[1723779265377,0.25098,142.41,142.35,20.8577618]
[1723779271201,0.25098,142.41,142.35,20.4036292]
[1723779273404,6.4759,142.44,142.39,20.0]
[1723779273573,15.098,142.46,142.4,91.66549]
[1723779273776,15.098,142.46,142.42,20.0]
[1723779274001,15.098,142.46,142.43,45.0]
[1723779274211,15.098,142.46,142.41,0.12549]
[1723779274450,15.098,142.46,142.43,20.0]
[1723779275099,15.098,142.46,142.44,45.0]
[1723779275833,15.098,142.46,142.43,45.0]
[1723779276508,6.1144,142.48,142.43,45.0]
[1723779276708,6.1144,142.48,142.44,20.12549]
[1723779276911,6.1144,142.48,142.45,45.12549]
[1723779277803,15.799,142.5,142.46,0.12549]
[1723779278021,15.799,142.5,142.46,26.66549]
[1723779280033,15.799,142.5,142.45,45.12549]
[1723779280199,15.799,142.5,142.45,45.0]
[1723779282009,15.799,142.5,142.46,20.0]
[1723779282213,15.799,142.5,142.45,45.12549]
[1723779282515,15.799,142.5,142.46,26.79098]
[1723779282718,15.799,142.5,142.47,45.0]
[1723779282917,6.254,142.52,142.47,45.0]
[1723779283427,6.254,142.52,142.46,0.25098]
[1723779283739,6.254,142.52,142.46,45.25098]
[1723779283900,0.12549,142.51,142.46,0.25098]
[1723779284102,0.12549,142.51,142.46,45.25098]
[1723779285425,6.254,142.52,142.46,71.79098]
[1723779285646,6.254,142.52,142.48,26.54]
[1723779285935,6.254,142.52,142.49,45.0]
[1723779296830,15.2991,142.53,142.49,45.0]
[1723779297026,6.5415,142.55,142.5,0.12549]
[1723779298043,16.1379,142.56,142.52,20.0]
[1723779298247,16.1379,142.56,142.53,45.12549]
[1723779298559,16.1379,142.56,142.52,20.0]
[1723779299028,16.1379,142.56,142.48,20.0]
[1723779299230,0.25098,142.55,142.49,45.25098]
[1723779299749,0.25098,142.55,142.49,45.12549]
[1723779300447,2.00507388,142.55,142.48,20.0]
[1723779300755,2.00507388,142.55,142.45,15.8113]
[1723779300756,0.12549,142.53,142.45,20.0]
[1723779301044,0.12549,142.51,142.45,20.0]
[1723779301219,0.25098,142.51,142.45,20.0]
[1723779302143,0.25098,142.51,142.46,45.25098]
[1723779302448,0.25098,142.51,142.47,20.0]
[1723779302622,15.6143,142.52,142.48,45.12549]
[1723779303037,6.0619,142.54,142.49,0.12549]
[1723779303223,6.0619,142.54,142.5,20.0]
[1723779303425,6.0619,142.54,142.51,45.0]
[1723779304953,15.5592,142.57,142.52,20.12549]
[1723779305157,15.5592,142.57,142.53,45.0]
[1723779306823,15.5592,142.57,142.5,20.0]
[1723779307021,15.5592,142.57,142.51,45.25098]
[1723779313333,0.25098,142.56,142.48,46.54]
[1723779313529,0.25098,142.56,142.48,20.0]
[1723779313530,7.26568,142.56,142.48,20.0]
[1723779313735,0.25098,142.56,142.46,46.54]
[1723779314043,0.25098,142.56,142.48,20.0]
[1723779314651,0.25098,142.56,142.49,0.12549]
[1723779314832,0.25098,142.56,142.49,45.25098]
[1723779315035,0.25098,142.56,142.51,20.0]
[1723779315746,0.25098,142.56,142.49,65.25098]
[1723779316056,0.25098,142.56,142.51,20.0]
[1723779316260,0.25098,142.56,142.49,65.25098]
[1723779316427,0.25098,142.56,142.49,45.25098]
[1723779317246,0.25098,142.56,142.51,20.0]
[1723779318439,0.25098,142.56,142.49,65.25098]
[1723779319939,0.12549,142.56,142.49,85.25098]
[1723779320141,15.5592,142.57,142.49,85.25098]
[1723779320764,15.5592,142.57,142.51,20.0]
[1723779321065,15.5592,142.57,142.52,45.0]
[1723779326258,0.12549,142.56,142.52,45.0]
[1723779326464,0.25098,142.56,142.52,45.0]
[1723779326670,0.25098,142.56,142.5,10.59]
[1723779326881,0.25098,142.56,142.48,10.59]
[1723779327054,0.25098,142.56,142.49,20.0]
[1723779328193,0.25098,142.56,142.5,45.0]
[1723779328741,10.71549,142.54,142.44,22.77965117]
[1723779328967,0.12549,142.52,142.44,30.59]
[1723779329181,0.25098,142.52,142.44,30.59]
[1723779329648,10.84098,142.52,142.44,30.59]
[1723779330457,0.12549,142.5,142.44,20.0]
[1723779330703,0.25098,142.5,142.43,20.4036292]
[1723779330873,10.84098,142.5,142.43,0.4036292]
[1723779331183,17.85868,142.5,142.43,0.4036292]
[1723779331382,10.84098,142.5,142.43,0.4036292]
[1723779331743,0.25098,142.5,142.43,0.4036292]
[1723779332885,0.12549,142.48,142.43,0.4036292]
[1723779333203,0.25098,142.48,142.43,0.4036292]
[1723779336385,0.12549,142.48,142.43,0.4036292]
[1723779336689,16.5223,142.49,142.43,20.4036292]
[1723779336998,16.5223,142.49,142.44,45.0]
[1723779337197,0.12549,142.48,142.44,45.0]
[1723779340472,0.12549,142.48,142.43,45.4036292]
[1723779341106,16.5223,142.49,142.43,71.9236292]
[1723779341273,16.5223,142.49,142.44,20.25098]
[1723779341607,16.5223,142.49,142.45,45.0]
[1723779344505,16.5223,142.49,142.46,20.0]
[1723779344885,6.6426,142.51,142.48,20.0]
[1723779345586,6.1254,142.55,142.49,26.52]
[1723779345789,6.1254,142.55,142.5,45.12549]
[1723779346386,6.1254,142.55,142.52,20.0]
[1723779348203,6.1254,142.55,142.5,45.12549]
[1723779348394,6.1254,142.55,142.51,20.12549]
[1723779348603,6.1254,142.55,142.52,45.0]
[1723779350178,6.1254,142.55,142.5,0.12549]
[1723779350376,6.1254,142.55,142.5,45.25098]
[1723779350990,6.1254,142.55,142.51,20.0]
[1723779351612,6.1254,142.55,142.5,45.25098]
[1723779351799,6.1254,142.55,142.51,20.0]
[1723779357588,15.1598,142.56,142.52,55.85098]
[1723779359940,6.4501,142.59,142.53,20.0]
[1723779360106,6.4501,142.59,142.55,20.0]
[1723779361117,6.4501,142.59,142.54,10.85098]
[1723779361323,6.4501,142.59,142.55,45.0]
[1723779361523,6.4501,142.59,142.54,0.12549]
[1723779361710,6.4501,142.59,142.52,30.6]
[1723779361904,6.4501,142.59,142.53,45.12549]
[1723779365121,0.12549,142.58,142.53,45.0]
[1723779365423,0.25098,142.58,142.53,45.0]
[1723779365919,2.00461752,142.58,142.5,10.6]
[1723779366424,19.61831752,142.58,142.5,10.6]
[1723779366802,19.61831752,142.58,142.48,29.37935063]
[1723779366803,7.14069,142.55,142.48,20.0]
[1723779367007,0.12549,142.53,142.48,20.0]
[1723779367209,0.25098,142.53,142.46,10.6]
[1723779367694,0.25098,142.53,142.46,30.6]
[1723779368198,0.25098,142.53,142.5,20.0]
[1723779368820,0.25098,142.53,142.47,65.0]
[1723779369120,0.25098,142.53,142.5,20.0]
[1723779370024,0.25098,142.53,142.48,10.85098]
[1723779371127,0.25098,142.53,142.47,45.0]
[1723779371303,0.25098,142.53,142.45,20.0]
[1723779371304,0.12549,142.51,142.45,20.0]
[1723779371796,0.25098,142.51,142.45,20.0]
[1723779373027,0.25098,142.51,142.43,11.0036292]
[1723779373201,0.25098,142.51,142.44,0.25098]
[1723779373401,2.00564616,142.51,142.43,11.0036292]
[1723779374411,2.00564616,142.51,142.44,45.0]
[1723779374608,0.25098,142.51,142.44,45.0]
[1723779374928,0.12549,142.49,142.43,0.4036292]
[1723779375127,2.00590621,142.49,142.43,0.4036292]
[1723779375441,0.25098,142.49,142.43,0.4036292]
[1723779375628,0.25098,142.49,142.43,31.0036292]
[1723779375818,0.25098,142.49,142.45,20.0]
[1723779376215,0.25098,142.49,142.43,0.4036292]
[1723779376421,0.25098,142.49,142.43,45.4036292]
[1723779377343,15.0487,142.47,142.43,0.4036292]
[1723779377519,0.25098,142.46,142.43,0.4036292]
[1723779377836,0.12549,142.46,142.43,0.4036292]
[1723779378244,0.25098,142.46,142.43,0.4036292]
[1723779380817,0.12549,142.46,142.43,0.4036292]
[1723779381028,0.25098,142.46,142.43,0.4036292]
[1723779382531,2.00623638,142.46,142.43,0.4036292]
[1723779382736,0.12549,142.44,142.43,0.4036292]
[1723779382942,0.25098,142.44,142.43,0.4036292]
[1723779383711,7.27138,142.44,142.43,0.4036292]
[1723779384050,0.12549,142.42,142.34,46.52]
[1723779384226,0.25098,142.42,142.34,20.0]
[1723779385430,0.25098,142.42,142.35,45.0]
[1723779385822,0.12549,142.42,142.35,45.0]
[1723779386020,7.27198,142.43,142.35,45.0]
[1723779386216,0.12549,142.41,142.32,46.52]
[1723779386417,0.25098,142.41,142.33,20.0]
[1723779386827,0.12549,142.41,142.33,20.0]
[1723779387026,0.25098,142.42,142.33,20.0]
[1723779387435,0.25098,142.42,142.36,20.0]
[1723779387935,16.1296,142.44,142.36,46.52]
[1723779388148,16.1296,142.44,142.37,20.12549]
[1723779388449,16.1296,142.44,142.38,71.52]
[1723779388656,16.1296,142.44,142.39,20.0]
[1723779388819,16.1296,142.44,142.4,45.12549]
[1723779389023,15.8771,142.48,142.43,20.0]
[1723779389555,15.8771,142.48,142.42,26.52]
[1723779389855,15.8771,142.48,142.43,45.0]
[1723779390145,15.8771,142.48,142.43,65.0]
[1723779390772,6.5745,142.49,142.43,65.0]
[1723779392651,6.5745,142.49,142.43,45.0]
[1723779393629,0.25098,142.48,142.43,45.0]
[1723779393841,0.25098,142.48,142.42,45.0]
[1723779394041,0.25098,142.48,142.41,0.12549]
[1723779395253,0.25098,142.48,142.41,45.12549]
[1723779397056,0.25098,142.48,142.43,20.0]
[1723779397057,0.12549,142.48,142.43,20.0]
[1723779397259,6.5745,142.49,142.45,20.0]
[1723779397664,15.8771,142.52,142.47,20.0]
[1723779397955,15.8771,142.52,142.48,71.52]
[1723779399249,15.8771,142.52,142.46,26.64549]
[1723779399447,0.25098,142.51,142.44,26.52]
[1723779400361,6.6288,142.5,142.4,20.0]
[1723779400559,0.25098,142.49,142.41,46.52]
[1723779400770,6.6288,142.5,142.43,46.52]
[1723779400933,6.6288,142.5,142.45,26.52]
[1723779401857,6.6288,142.5,142.46,45.25098]
[1723779402059,6.6288,142.5,142.45,26.52]
[1723779403762,6.6288,142.5,142.46,45.12549]
[1723779407246,6.6288,142.5,142.45,26.52]
[1723779407568,0.12549,142.47,142.39,46.52]
[1723779407772,0.25098,142.47,142.39,26.52]
[1723779409038,0.25098,142.47,142.39,46.52]
[1723779409660,0.25098,142.47,142.4,45.0]
[1723779411383,6.2975,142.46,142.4,45.0]
[1723779411551,0.12549,142.44,142.35,53.83387199]
[1723779411758,0.12549,142.44,142.35,46.52]
[1723779412154,8.90171422,142.44,142.35,46.52]
[1723779412457,0.12549,142.42,142.33,46.52]
[1723779412658,0.12549,142.4,142.33,46.52]
[1723779412857,2.00689117,142.4,142.33,46.52]
[1723779413867,2.0068752,142.4,142.31,26.52]
[1723779414055,0.12549,142.38,142.31,26.52]
[1723779414259,0.25098,142.38,142.31,26.52]
[1723779415195,0.12549,142.36,142.3,20.0]
[1723779415487,6.5858,142.35,142.29,26.52]
[1723779417184,6.5858,142.35,142.31,46.52]
[1723779417688,6.5858,142.35,142.32,45.0]
[1723779418372,6.5858,142.35,142.29,46.52]
[1723779418693,6.5858,142.35,142.3,45.25098]
[1723779420585,6.5858,142.35,142.32,20.0]
[1723779420880,16.2672,142.37,142.31,46.52]
[1723779421185,16.2672,142.37,142.32,45.25098]
[1723779421675,16.2672,142.37,142.33,20.0]
[1723779422264,16.2672,142.37,142.32,45.25098]
[1723779422884,0.12549,142.36,142.29,46.52]
[1723779423089,0.25098,142.36,142.3,0.12549]
[1723779423309,0.12549,142.36,142.3,0.25098]
[1723779423462,16.2672,142.37,142.31,46.52]
[1723779423860,16.2672,142.37,142.32,45.0]
[1723779426094,0.12549,142.36,142.32,45.0]
[1723779426393,0.25098,142.36,142.31,20.0]
[1723779426777,0.25098,142.36,142.3,0.25098]
[1723779426974,0.25098,142.36,142.3,45.25098]
[1723779427670,0.25098,142.36,142.32,20.0]
[1723779429806,16.2672,142.37,142.33,45.0]
[1723779429984,16.2672,142.37,142.32,20.0]
[1723779430393,16.2672,142.37,142.3,20.25098]
[1723779430601,16.2672,142.37,142.31,45.0]
[1723779430998,1.8817616,142.36,142.31,45.0]
[1723779431307,23.2913,142.37,142.28,20.8417755]
[1723779431308,6.1456,142.33,142.28,20.8417755]
[1723779431485,1.75668327,142.32,142.28,0.8417755]
[1723779431690,0.12549,142.32,142.28,0.8417755]
[1723779432489,6.1456,142.33,142.29,20.0]
[1723779433482,22.4653,142.37,142.29,20.0]
[1723779433685,22.4653,142.37,142.3,45.25098]
[1723779434709,0.25098,142.36,142.28,27.3617755]
[1723779434913,9.03213341,142.36,142.28,0.8417755]
[1723779435412,6.1981,142.35,142.28,0.8417755]
[1723779435590,0.12549,142.32,142.28,0.8417755]
[1723779435775,0.25098,142.32,142.28,0.8417755]
[1723779436386,0.12549,142.3,142.28,0.8417755]
[1723779437429,0.12549,142.27,142.22,22.0]
[1723779437716,6.1981,142.26,142.22,22.0]
[1723779438578,6.1981,142.26,142.24,7.0302]
[1723779439380,6.1981,142.26,142.24,7.0299]
[1723779439605,6.1981,142.26,142.25,7.0298]
[1723779439993,6.62029,142.3,142.26,7.0293]
[1723779440213,6.4948,142.3,142.27,7.0288]
[1723779440518,6.4948,142.34,142.31,7.0265]
[1723779440676,6.4948,142.34,142.32,7.0263]
[1723779442883,6.4948,142.34,142.24,46.52]
[1723779442884,13.5204,142.34,142.24,46.52]
[1723779443090,8.78296678,142.33,142.25,0.25098]
[1723779443286,8.78296678,142.33,142.24,46.52]
[1723779443287,8.78349038,142.32,142.24,91.52]
[1723779443588,7.0265,142.32,142.22,22.0]
[1723779443785,0.25098,142.31,142.22,22.0]
[1723779444506,0.12549,142.31,142.23,46.52]
[1723779444810,0.12549,142.32,142.23,46.52]
[1723779444811,0.25098,142.32,142.23,46.52]
[1723779445189,0.12549,142.3,142.24,45.25098]
[1723779445419,0.25098,142.3,142.24,45.25098]
[1723779446017,0.25098,142.3,142.24,45.0]
[1723779446195,0.25098,142.3,142.25,20.25098]
[1723779446525,0.25098,142.3,142.25,0.25098]
[1723779446813,0.25098,142.3,142.24,45.0]
[1723779447241,0.25098,142.3,142.23,45.0]
[1723779448955,0.12549,142.3,142.25,20.0]
[1723779449316,0.25098,142.31,142.25,20.0]
[1723779450046,6.4948,142.34,142.25,20.0]
[1723779450239,6.4948,142.34,142.27,46.52]
[1723779450417,6.4948,142.34,142.28,45.0]
[1723779450849,6.4948,142.34,142.26,0.25098]
[1723779450850,6.4948,142.34,142.26,20.25098]
[1723779451037,6.4948,142.34,142.27,45.0]
[1723779451646,6.4948,142.34,142.3,20.0]
[1723779451866,6.4948,142.34,142.31,45.0]
[1723779452224,6.4948,142.34,142.3,45.0]
[1723779452746,6.4948,142.34,142.28,20.0]
[1723779453047,13.5206,142.34,142.26,0.25098]
[1723779453229,15.27748611,142.34,142.25,26.52]
[1723779453413,0.12549,142.33,142.25,26.52]
[1723779453616,0.25098,142.33,142.26,0.25098]
[1723779454327,0.25098,142.33,142.26,45.25098]
[1723779456254,6.4948,142.34,142.3,20.0]
[1723779457341,6.4948,142.34,142.26,65.25098]
[1723779457657,7.27698,142.33,142.24,46.52]
[1723779457821,7.27698,142.33,142.25,0.12549]
[1723779458955,0.12549,142.31,142.25,0.12549]
[1723779459160,0.25098,142.31,142.25,0.12549]
[1723779459846,0.12549,142.31,142.25,0.12549]
[1723779460049,0.25098,142.32,142.25,0.12549]
[1723779460226,2.0079182,142.32,142.25,0.12549]
[1723779460419,2.0079182,142.32,142.25,45.12549]
[1723779461161,0.25098,142.32,142.25,45.12549]
[1723779461858,7.27738,142.32,142.25,45.0]
[1723779465945,9.03448556,142.32,142.25,45.0]
[1723779466347,9.03448556,142.32,142.24,20.12549]
[1723779466348,7.0269,142.31,142.24,20.0]
[1723779466526,7.27838,142.3,142.22,48.52]
[1723779466730,21.81589,142.29,142.23,45.25098]
[1723779466946,0.12549,142.28,142.22,22.0]
[1723779468536,0.12549,142.28,142.25,7.0297]
[1723779468743,0.12549,142.28,142.22,22.0]
[1723779469533,0.25098,142.28,142.23,45.0]
[1723779470335,6.3044,142.34,142.25,20.0]
[1723779470540,6.3044,142.34,142.27,20.0]
[1723779471838,0.12549,142.33,142.27,20.0]
[1723779472039,0.25098,142.33,142.27,20.0]
[1723779472267,0.25098,142.33,142.26,26.64549]
[1723779472476,0.25098,142.33,142.26,0.12549]
[1723779472774,0.25098,142.33,142.26,71.64549]
[1723779475076,0.25098,142.33,142.28,26.52]
[1723779475279,0.25098,142.33,142.26,71.64549]
[1723779478877,0.25098,142.33,142.26,71.52]
[1723779479553,0.25098,142.33,142.26,26.52]
[1723779479850,7.27708,142.33,142.26,26.52]
[1723779481050,7.15239,142.31,142.24,26.52]
[1723779481254,0.12549,142.29,142.24,26.52]
[1723779481561,0.12549,142.29,142.23,20.0]
[1723779481562,17.69262332,142.29,142.23,20.0]
[1723779481761,0.12549,142.28,142.24,45.0]
[1723779483159,15.93549,142.29,142.24,71.52]
[1723779485308,0.12549,142.28,142.24,71.52]
[1723779486081,0.12549,142.28,142.24,45.0]
[1723779486312,0.12549,142.28,142.23,20.0]
[1723779486601,0.12549,142.27,142.22,2.0]
[1723779490784,7.15439,142.27,142.22,2.0]
[1723779491115,0.12549,142.26,142.22,2.0]
[1723779492690,0.25098,142.27,142.22,2.0]
[1723779492879,7.27988,142.27,142.22,2.0]
[1723779493919,8.78707531,142.26,142.22,2.0]
[1723779494121,0.12549,142.25,142.22,2.0]
[1723779494416,15.2036,142.24,142.22,2.0]
[1723779494619,13.83958,142.23,142.22,2.0]
[1723779494917,6.80878,142.23,142.22,2.0]
[1723779497009,6.68329,142.23,142.22,2.0]
[1723779498985,15.2036,142.24,142.22,2.0]
[1723779499391,0.12549,142.25,142.22,2.0]
[1723779499688,0.25098,142.26,142.22,2.0]
[1723779502705,7.0303,142.24,142.22,2.0]
[1723779502888,0.12549,142.23,142.22,2.0]
[1723779504094,0.12549,142.24,142.22,2.0]
[1723779504288,0.12549,142.25,142.22,2.0]
[1723779504615,0.25098,142.26,142.22,2.0]
[1723779504916,0.12549,142.26,142.22,2.0]
[1723779505614,51.40321622,142.31,142.23,46.52]
[1723779505615,13.59881622,142.31,142.23,46.52]
[1723779505828,6.2838,142.31,142.24,45.12549]
[1723779505987,6.2838,142.31,142.22,2.0]
[1723779506485,7.0275,142.3,142.22,22.0]
[1723779506687,7.0275,142.3,142.23,45.0]
[1723779507005,0.12549,142.3,142.23,45.0]
[1723779507186,0.25098,142.3,142.23,45.0]
[1723779509415,0.25098,142.3,142.24,20.0]
[1723779509629,0.25098,142.3,142.25,45.0]
[1723779512932,0.25098,142.3,142.23,0.12549]
[1723779513096,0.25098,142.3,142.23,45.25098]
[1723779517098,0.25098,142.3,142.24,26.52]
[1723779517321,0.25098,142.3,142.25,45.0]
[1723779517529,0.12549,142.3,142.26,20.0]
[1723779517720,0.12549,142.31,142.23,0.25098]
[1723779517918,0.25098,142.31,142.23,45.25098]
[1723779518144,7.27798,142.31,142.23,45.25098]
[1723779522108,7.27798,142.31,142.22,22.0]
[1723779522109,0.12549,142.29,142.22,2.0]
[1723779522333,0.12549,142.25,142.22,2.0]
[1723779522538,0.25098,142.25,142.22,2.0]
[1723779522935,0.12549,142.25,142.22,2.0]
[1723779523147,0.25098,142.26,142.22,2.0]
[1723779525866,0.12549,142.24,142.22,2.0]
[1723779526168,0.25098,142.24,142.22,2.0]
[1723779526460,7.28148,142.24,142.22,2.0]
[1723779529231,7.0308,142.23,142.22,2.0]
[1723779529432,7.28178,142.23,142.22,2.0]
[1723779532648,0.25098,142.23,142.22,2.0]
[1723779533644,0.12549,142.23,142.22,2.0]
[1723779534647,7.15629,142.23,142.22,2.0]
[1723779534845,30.63916302,142.27,142.22,12.64]
[1723779535046,16.2894,142.27,142.22,12.64]
[1723779535871,16.2894,142.27,142.22,2.0]
[1723779536662,0.12549,142.26,142.22,2.0]
[1723779537958,20.0,142.28,142.22,2.0]
[1723779537959,0.25098,142.27,142.22,2.0]
[1723779539085,0.12549,142.25,142.22,2.0]
[1723779539398,0.12549,142.26,142.22,2.0]
[1723779539891,0.25098,142.27,142.22,2.0]
[1723779540085,0.12549,142.24,142.22,2.0]
[1723779540379,0.25098,142.24,142.22,2.0]
[1723779542151,7.0294,142.26,142.22,2.0]
[1723779542359,27.0299,142.25,142.22,2.0]
[1723779542572,20.0,142.25,142.22,2.0]
[1723779542880,7.0294,142.26,142.22,2.0]
[1723779543189,20.0,142.25,142.22,2.0]
[1723779543362,0.12549,142.24,142.22,2.0]
[1723779543569,0.25098,142.24,142.22,2.0]
[1723779544954,0.12549,142.24,142.22,2.0]
[1723779545153,0.12549,142.27,142.22,2.0]
[1723779545354,16.0505,142.31,142.23,26.6]
[1723779545581,23.0776,142.31,142.24,45.0]
[1723779546857,0.12549,142.3,142.24,45.0]
[1723779547188,0.12549,142.3,142.22,2.0]
[1723779547189,7.27838,142.3,142.22,2.0]
[1723779547598,7.27838,142.3,142.22,47.0]
[1723779547787,0.12549,142.28,142.22,2.0]
[1723779547964,0.25098,142.28,142.22,2.0]
[1723779548168,0.12549,142.26,142.22,2.0]
[1723779548398,0.25098,142.26,142.22,2.0]
[1723779548768,0.12549,142.26,142.22,2.0]
[1723779549599,7.028,142.29,142.22,2.0]
[1723779549906,20.0,142.28,142.22,47.0]
[1723779550198,20.0,142.3,142.22,47.0]
[1723779550788,24.88039114,142.32,142.22,47.0]
[1723779550789,7.31359114,142.32,142.23,20.4076943]
[1723779550981,7.31359114,142.32,142.24,45.25098]
[1723779551307,7.31359114,142.32,142.25,0.40679638]
[1723779551870,7.31359114,142.32,142.24,71.85098]
[1723779552088,7.31359114,142.32,142.24,45.0]